fUSD/lending_fUSD_20250414
["ID","MTS","AMOUNT","RATE_DAILY","PERIOD"]
[358049309,1744669871137,-555.41,0.00017897,2]
[358049310,1744669871147,-555.41,0.00017897,2]
[358049311,1744669871156,-555.41,0.00017897,2]
[358049312,1744669871166,-555.41,0.00017897,2]
[358049313,1744669871175,-555.41,0.00017897,2]
[358049314,1744669871185,-555.56,0.00017897,2]
[358049315,1744669871195,-151.0,0.00017897,2]
[358049316,1744669871205,-500.0,0.00017897,2]
[358049317,1744669871215,-151.0,0.00017897,2]
[358049318,1744669871224,-500.0,0.00017897,2]
[358049319,1744669871234,-500.0,0.00017897,2]
[358049320,1744669871243,-154.931243,0.00017897,2]
[358049321,1744669871253,-500.0,0.00017897,2]
[358049322,1744669871261,-500.0,0.00017897,2]
[358049323,1744669871271,-500.0,0.00017897,2]
[358049324,1744669871281,-500.0,0.00017897,2]
[358049325,1744669871290,-458.26361614,0.00017897,2]
[358049326,1744669871299,-500.0,0.00017897,2]
[358049327,1744669871309,-500.0,0.00017897,2]
[358049328,1744669871319,-500.0,0.00017897,2]
[358049329,1744669871332,-500.0,0.00017897,2]
[358049330,1744669871342,-151.0,0.00017897,2]
[358049331,1744669871352,-500.0,0.00017897,2]
[358049332,1744669871361,-500.0,0.00017897,2]
[358049333,1744669871371,-500.0,0.00017897,2]
[358049334,1744669871380,-500.0,0.00017897,2]
[358049335,1744669871390,-172.7294398,0.00017897,2]
[358049336,1744669871399,-500.0,0.00017897,2]
[358049337,1744669871411,-500.0,0.00017897,2]
[358049338,1744669871421,-344.401099,0.00017897,2]
[358049339,1744669871430,-344.401099,0.00017897,2]
[358049340,1744669871440,-344.401099,0.00017897,2]
[358049341,1744669871450,-500.0,0.00017897,2]
[358049342,1744669871459,-500.0,0.00017897,2]
[358049343,1744669871468,-500.0,0.00017897,2]
[358049344,1744669871479,-644.27672306,0.00017897,2]
[358049345,1744669871489,-500.0,0.00017897,2]
[358049346,1744669871499,-344.401099,0.00017897,2]
[358049347,1744669871510,-500.0,0.00017897,2]
[358049348,1744669871520,-500.0,0.00017897,2]
[358049349,1744669871530,-344.401099,0.00017897,2]
[358049350,1744669871540,-500.0,0.00017897,2]
[358049351,1744669871550,-344.401099,0.00017897,2]
[358049352,1744669871560,-500.0,0.00017897,2]
[358049353,1744669871570,-500.0,0.00017897,2]
[358049354,1744669871581,-500.0,0.00017897,2]
[358049355,1744669871592,-500.0,0.00017897,2]
[358049356,1744669871603,-500.0,0.00017897,2]
[358049357,1744669871613,-556.63,0.00017897,2]
[358049358,1744669871623,-500.0,0.00017897,2]
[358049359,1744669871634,-500.0,0.00017897,2]
[358049360,1744669871644,-500.0,0.00017897,2]
[358049361,1744669871655,-387.45501259,0.00017897,2]
[358049362,1744669871664,-500.0,0.00017897,2]
[358049363,1744669871675,-1753.38,0.00017897,2]
[358049364,1744669871686,-500.0,0.00017897,2]
[358049365,1744669871695,-1753.38,0.00017897,2]
[358049366,1744669871705,-500.0,0.00017897,2]
[358049367,1744669871715,-1753.38,0.00017897,2]
[358049368,1744669871724,-500.0,0.00017897,2]
[358049369,1744669871734,-1753.38,0.00017897,2]
[358049370,1744669871743,-541.12,0.00017897,2]
[358049371,1744669871753,-1753.38,0.00017897,2]
[358049372,1744669871762,-1753.38,0.00017897,2]
[358049373,1744669871771,-1753.38,0.00017897,2]
[358049374,1744669871781,-151.0,0.00017897,2]
[358049375,1744669871792,-1753.38,0.00017897,2]
[358049376,1744669871802,-1753.38,0.00017897,2]
[358049377,1744669871811,-152.067887,0.00017897,2]
[358049378,1744669871822,-1753.38,0.00017897,2]
[358049379,1744669871831,-1753.38,0.00017897,2]
[358049380,1744669871841,-1753.38,0.00017897,2]
[358049381,1744669871851,-1753.38,0.00017897,2]
[358049382,1744669871861,-1753.38,0.00017897,2]
[358049383,1744669871870,-1753.38,0.00017897,2]
[358049384,1744669871880,-1753.38,0.00017897,2]
[358049385,1744669871890,-1753.38,0.00017897,2]
[358049386,1744669871900,-1753.61179042,0.00017897,2]
[358049387,1744669871912,-500.0,0.00017897,2]
[358049388,1744669871922,-500.0,0.00017897,2]
[358049389,1744669871932,-547.23838662,0.00017897,2]
[358049390,1744669871941,-966.87,0.00017897,2]
[358049391,1744669871951,-966.87,0.00017897,2]
[358049392,1744669871961,-966.87,0.00017897,2]
[358049393,1744669871971,-966.87,0.00017897,2]
[358049394,1744669871980,-966.87,0.00017897,2]
[358049395,1744669871990,-966.87,0.00017897,2]
[358049396,1744669871999,-966.87,0.00017897,2]
[358049397,1744669872009,-500.0,0.00017897,2]
[358049398,1744669872019,-966.87,0.00017897,2]
[358049399,1744669872030,-500.0,0.00017897,2]
[358049400,1744669872040,-500.0,0.00017897,2]
[358049401,1744669872050,-966.87,0.00017897,2]
[358049402,1744669872059,-500.0,0.00017897,2]
[358049403,1744669872069,-500.0,0.00017897,2]
[358049404,1744669872079,-966.87,0.00017897,2]
[358049405,1744669872091,-500.0,0.00017897,2]
[358049406,1744669872100,-966.87,0.00017897,2]
[358049407,1744669872110,-500.0,0.00017897,2]
[358049408,1744669872120,-966.87,0.00017897,2]
[358049409,1744669872129,-500.0,0.00017897,2]
[358049410,1744669872139,-500.0,0.00017897,2]
[358049411,1744669872149,-966.87,0.00017897,2]
[358049412,1744669872160,-966.87,0.00017897,2]
[358049413,1744669872170,-500.0,0.00017897,2]
[358049414,1744669872180,-966.87,0.00017897,2]
[358049415,1744669872189,-966.87,0.00017897,2]
[358049416,1744669872199,-966.87,0.00017897,2]
[358049417,1744669872209,-966.9305093,0.00017897,2]
[358049418,1744669872219,-5163.37,0.00017897,2]
[358049419,1744669872229,-5163.37,0.00017897,2]
[358049420,1744669872238,-5163.37,0.00017897,2]
[358049421,1744669872248,-289.33123948,0.00017897,2]
[358049422,1744669872258,-5163.37,0.00017897,2]
[358049423,1744669872268,-5163.37,0.00017897,2]
[358049424,1744669872277,-5163.37,0.00017897,2]
[358049425,1744669872287,-5163.37,0.00017897,2]
[358049426,1744669872297,-5163.37,0.00017897,2]
[358049427,1744669872307,-5163.37,0.00017897,2]
[358049428,1744669872317,-5163.37,0.00017897,2]
[358049429,1744669872329,-5163.37,0.00017897,2]
[358049430,1744669872339,-5163.37,0.00017897,2]
[358049431,1744669872349,-5163.37,0.00017897,2]
[358049432,1744669872359,-5163.37,0.00017897,2]
[358049433,1744669872370,-5163.37,0.00017897,2]
[358049434,1744669872379,-500.0,0.00017897,2]
[358049435,1744669872389,-5163.37,0.00017897,2]
[358049436,1744669872399,-192.6,0.00017897,2]
[358049437,1744669872411,-5163.37,0.00017897,2]
[358049438,1744669872420,-5163.57168388,0.00017897,2]
[358049439,1744669872430,-500.0,0.00017897,2]
[358049440,1744669872440,-500.0,0.00017897,2]
[358049441,1744669872450,-500.0,0.00017897,2]
[358049442,1744669872459,-540.5,0.00017897,2]
[358049443,1744669872468,-295.01608991,0.00017897,2]
[358049444,1744669872479,-500.0,0.00017897,2]
[358049445,1744669872489,-500.0,0.00017897,2]
[358049446,1744669872499,-500.0,0.00017897,2]
[358049447,1744669872509,-500.0,0.00017897,2]
[358049448,1744669872519,-500.0,0.00017897,2]
[358049449,1744669872528,-500.0,0.00017897,2]
[358049450,1744669872538,-500.0,0.00017897,2]
[358049451,1744669872547,-500.0,0.00017897,2]
[358049452,1744669872557,-500.0,0.00017897,2]
[358049453,1744669872567,-500.0,0.00017897,2]
[358049454,1744669872577,-500.0,0.00017897,2]
[358049455,1744669872587,-500.0,0.00017897,2]
[358049456,1744669872597,-500.0,0.00017897,2]
[358049457,1744669872607,-500.0,0.00017897,2]
[358049458,1744669872617,-500.0,0.00017897,2]
[358049459,1744669872627,-520.09,0.00017897,2]
[358049460,1744669872637,-3916.99,0.00017897,2]
[358049461,1744669872647,-3916.99,0.00017897,2]
[358049462,1744669872656,-3916.99,0.00017897,2]
[358049463,1744669872667,-3916.99,0.00017897,2]
[358049464,1744669872676,-3916.99,0.00017897,2]
[358049465,1744669872686,-3916.99,0.00017897,2]
[358049466,1744669872696,-3916.99,0.00017897,2]
[358049467,1744669872706,-3916.99,0.00017897,2]
[358049468,1744669872715,-3916.99,0.00017897,2]
[358049469,1744669872723,-500.0,0.00017897,2]
[358049470,1744669872732,-3916.99,0.00017897,2]
[358049471,1744669872741,-500.0,0.00017897,2]
[358049472,1744669872750,-500.0,0.00017897,2]
[358049473,1744669872760,-3916.99,0.00017897,2]
[358049474,1744669872769,-500.0,0.00017897,2]
[358049475,1744669872778,-3916.99,0.00017897,2]
[358049476,1744669872787,-500.0,0.00017897,2]
[358049477,1744669872800,-500.0,0.00017897,2]
[358049478,1744669872809,-3916.99,0.00017897,2]
[358049479,1744669872817,-589.15927667,0.00017897,2]
[358049480,1744669872827,-500.0,0.00017897,2]
[358049481,1744669872835,-500.0,0.00017897,2]
[358049482,1744669872844,-3916.99,0.00017897,2]
[358049483,1744669872853,-500.0,0.00017897,2]
[358049484,1744669872862,-500.0,0.00017897,2]
[358049485,1744669872871,-3916.99,0.00017897,2]
[358049486,1744669872880,-500.0,0.00017897,2]
[358049487,1744669872889,-500.0,0.00017897,2]
[358049488,1744669872899,-3916.99,0.00017897,2]
[358049489,1744669872908,-500.0,0.00017897,2]
[358049490,1744669872917,-500.0,0.00017897,2]
[358049491,1744669872925,-3916.99,0.00017897,2]
[358049492,1744669872934,-519.84512954,0.00017897,2]
[358049493,1744669872943,-500.0,0.00017897,2]
[358049494,1744669873091,-3917.0,0.00017897,2]
[358049495,1744669873100,-500.0,0.00017897,2]
[358049496,1744669873109,-269.397633,0.00017897,2]
[358049497,1744669873119,-269.397633,0.00017897,2]
[358049498,1744669873128,-269.397633,0.00017897,2]
[358049499,1744669873137,-500.0,0.00017897,2]
[358049500,1744669873146,-500.0,0.00017897,2]
[358049501,1744669873155,-500.0,0.00017897,2]
[358049502,1744669873164,-500.0,0.00017897,2]
[358049503,1744669873173,-525.38,0.00017897,2]
[358049504,1744669873183,-500.0,0.00017897,2]
[358049505,1744669873192,-500.0,0.00017897,2]
[358049506,1744669873202,-500.0,0.00017897,2]
[358049507,1744669873212,-500.0,0.00017897,2]
[358049508,1744669873221,-500.0,0.00017897,2]
[358049509,1744669873230,-500.0,0.00017897,2]
[358049510,1744669873239,-500.0,0.00017897,2]
[358049511,1744669873249,-500.0,0.00017897,2]
[358049512,1744669873258,-500.0,0.00017897,2]
[358049513,1744669873268,-500.0,0.00017897,2]
[358049514,1744669873277,-500.0,0.00017897,2]
[358049515,1744669873287,-500.0,0.00017897,2]
[358049516,1744669873296,-500.0,0.00017897,2]
[358049517,1744669873306,-269.397633,0.00017897,2]
[358049518,1744669873315,-500.0,0.00017897,2]
[358049519,1744669873326,-500.0,0.00017897,2]
[358049520,1744669873337,-500.0,0.00017897,2]
[358049521,1744669873347,-500.0,0.00017897,2]
[358049522,1744669873356,-269.397633,0.00017897,2]
[358049523,1744669873367,-500.0,0.00017897,2]
[358049524,1744669873376,-500.0,0.00017897,2]
[358049525,1744669873385,-269.397633,0.00017897,2]
[358049526,1744669873394,-500.0,0.00017897,2]
[358049527,1744669873404,-500.0,0.00017897,2]
[358049528,1744669873414,-500.0,0.00017897,2]
[358049529,1744669873422,-363.15,0.00017897,2]
[358049530,1744669873431,-500.0,0.00017897,2]
[358049531,1744669873441,-500.0,0.00017897,2]
[358049532,1744669873450,-500.0,0.00017897,2]
[358049533,1744669873460,-500.0,0.00017897,2]
[358049534,1744669873471,-500.0,0.00017897,2]
[358049535,1744669873482,-500.0,0.00017897,2]
[358049536,1744669873491,-264.11,0.00017897,2]
[358049537,1744669873501,-500.0,0.00017897,2]
[358049538,1744669873511,-500.0,0.00017897,2]
[358049539,1744669873520,-521.11,0.00017897,2]
[358049540,1744669873530,-521.11,0.00017897,2]
[358049541,1744669873540,-500.0,0.00017897,2]
[358049542,1744669873550,-500.0,0.00017897,2]
[358049543,1744669873560,-521.11,0.00017897,2]
[358049544,1744669873569,-500.0,0.00017897,2]
[358049545,1744669873579,-521.11,0.00017897,2]
[358049546,1744669873589,-500.0,0.00017897,2]
[358049547,1744669873599,-521.11,0.00017897,2]
[358049548,1744669873609,-500.0,0.00017897,2]
[358049549,1744669873619,-500.0,0.00017897,2]
[358049550,1744669873629,-521.11,0.00017897,2]
[358049551,1744669873639,-521.11,0.00017897,2]
[358049552,1744669873648,-500.0,0.00017897,2]
[358049553,1744669873657,-640.94,0.00017897,2]
[358049554,1744669873667,-521.11,0.00017897,2]
[358049555,1744669873677,-500.0,0.00017897,2]
[358049556,1744669873687,-521.11,0.00017897,2]
[358049557,1744669873698,-637.83,0.00017897,2]
[358049558,1744669873709,-521.11,0.00017897,2]
[358049559,1744669873719,-521.11,0.00017897,2]
[358049560,1744669873730,-484.143272,0.00017897,2]
[358049561,1744669873741,-521.11,0.00017897,2]
[358049562,1744669873752,-521.11,0.00017897,2]
[358049563,1744669873762,-484.143272,0.00017897,2]
[358049564,1744669873772,-521.11,0.00017897,2]
[358049565,1744669873782,-521.11,0.00017897,2]
[358049566,1744669873792,-484.143272,0.00017897,2]
[358049567,1744669873803,-521.11,0.00017897,2]
[358049568,1744669873813,-521.11,0.00017897,2]
[358049569,1744669873823,-521.11,0.00017897,2]
[358049570,1744669873833,-521.11,0.00017897,2]
[358049571,1744669873843,-521.28,0.00017897,2]
[358049572,1744669873853,-500.0,0.00017897,2]
[358049573,1744669873863,-500.0,0.00017897,2]
[358049574,1744669873873,-501.01,0.00017897,2]
[358049575,1744669873883,-500.0,0.00017897,2]
[358049576,1744669873894,-500.0,0.00017897,2]
[358049577,1744669873904,-484.143272,0.00017897,2]
[358049578,1744669873915,-408.37,0.00017897,2]
[358049579,1744669873925,-484.143272,0.00017897,2]
[358049580,1744669873935,-484.143272,0.00017897,2]
[358049581,1744669873945,-2003.386115,0.00017897,2]
[358049582,1744669873954,-2003.386115,0.00017897,2]
[358049583,1744669873964,-2003.386115,0.00017897,2]
[358049584,1744669873974,-151.0,0.00017897,2]
[358049585,1744669873984,-245.739047,0.00017897,2]
[358049586,1744669873994,-500.0,0.00017897,2]
[358049587,1744669874004,-500.0,0.00017897,2]
[358049588,1744669874015,-500.0,0.00017897,2]
[358049589,1744669874025,-2003.386115,0.00017897,2]
[358049590,1744669874035,-158.08340923,0.00017897,2]
[358049591,1744669874045,-511.56,0.00017897,2]
[358049592,1744669874055,-2003.386115,0.00017897,2]
[358049593,1744669874065,-2003.386115,0.00017897,2]
[358049594,1744669874074,-500.0,0.00017897,2]
[358049595,1744669874084,-500.0,0.00017897,2]
[358049596,1744669874094,-500.0,0.00017897,2]
[358049597,1744669874104,-500.0,0.00017897,2]
[358049598,1744669874113,-500.0,0.00017897,2]
[358049599,1744669874123,-301.71,0.00017897,2]
[358049600,1744669874132,-500.0,0.00017897,2]
[358049601,1744669874142,-500.0,0.00017897,2]
[358049602,1744669874151,-181.78661015,0.00017897,2]
[358049603,1744669874162,-500.0,0.00017897,2]
[358049604,1744669874171,-373.44,0.00017897,2]
[358049605,1744669874181,-500.0,0.00017897,2]
[358049606,1744669874191,-500.0,0.00017897,2]
[358049607,1744669874201,-500.0,0.00017897,2]
[358049608,1744669874211,-500.0,0.00017897,2]
[358049609,1744669874220,-500.0,0.00017897,2]
[358049610,1744669874230,-500.0,0.00017897,2]
[358049611,1744669874240,-500.0,0.00017897,2]
[358049612,1744669874250,-500.0,0.00017897,2]
[358049613,1744669874260,-500.0,0.00017897,2]
[358049614,1744669874270,-500.0,0.00017897,2]
[358049615,1744669874280,-500.0,0.00017897,2]
[358049616,1744669874290,-500.0,0.00017897,2]
[358049617,1744669874299,-500.0,0.00017897,2]
[358049618,1744669874309,-500.0,0.00017897,2]
[358049619,1744669874319,-500.0,0.00017897,2]
[358049620,1744669874331,-500.0,0.00017897,2]
[358049621,1744669874341,-280.05,0.00017897,2]
[358049622,1744669874351,-500.0,0.00017897,2]
[358049623,1744669874362,-500.0,0.00017897,2]
[358049624,1744669874372,-209.55654208,0.00017897,2]
[358049625,1744669874382,-215.52,0.00017897,2]
[358049626,1744669874392,-321.44779,0.00017897,2]
[358049627,1744669874402,-321.44779,0.00017897,2]
[358049628,1744669874412,-321.44779,0.00017897,2]
[358049629,1744669874422,-500.0,0.00017897,2]
[358049630,1744669874432,-500.0,0.00017897,2]
[358049631,1744669874442,-500.0,0.00017897,2]
[358049632,1744669874452,-500.0,0.00017897,2]
[358049633,1744669874461,-573.40757713,0.00017897,2]
[358049634,1744669874471,-500.0,0.00017897,2]
[358049635,1744669874483,-589.45794638,0.00017897,2]
[358049636,1744669874493,-555.57648203,0.00017897,2]
[358049637,1744669874502,-321.44779,0.00017897,2]
[358049638,1744669874512,-321.44779,0.00017897,2]
[358049639,1744669874521,-321.44779,0.00017897,2]
[358049640,1744669874531,-500.0,0.00017897,2]
[358049641,1744669874541,-500.0,0.00017897,2]
[358049642,1744669874551,-500.0,0.00017897,2]
[358049643,1744669874561,-500.0,0.00017897,2]
[358049644,1744669874571,-500.0,0.00017897,2]
[358049645,1744669874582,-500.0,0.00017897,2]
[358049646,1744669874591,-500.0,0.00017897,2]
[358049647,1744669874601,-500.0,0.00017897,2]
[358049648,1744669874611,-151.0,0.00017897,2]
[358049649,1744669874622,-151.0,0.00017897,2]
[358049650,1744669874632,-151.0,0.00017897,2]
[358049651,1744669874642,-500.0,0.00017897,2]
[358049652,1744669874652,-74476.09,0.00017897,2]
[358049653,1744669874662,-151.0,0.00017897,2]
[358049654,1744669874672,-500.0,0.00017897,2]
[358049655,1744669874682,-74476.09,0.00017897,2]
[358049656,1744669874692,-500.0,0.00017897,2]
[358049657,1744669874702,-74476.09,0.00017897,2]
[358049658,1744669874712,-500.0,0.00017897,2]
[358049659,1744669874722,-251.98568552,0.00017897,2]
[358049660,1744669874732,-74476.09,0.00017897,2]
[358049661,1744669874742,-41644.42096793,0.00017897,2]
[358049662,1744669874976,-26628.36040178,0.00017897,2]
[358049663,1744669874993,-4076.34,0.00017896,2]
[358049664,1744669875003,-250.0760007,0.00017897,2]
[358049665,1744669875015,-5953.23262959,0.00017897,2]
[358049666,1744669875024,-40027.04015593,0.00017897,2]
[358049667,1744669875036,-34449.04984407,0.00017897,2]
[358049668,1744669875046,-74476.09,0.00017897,2]
[358049669,1744669875055,-74476.09,0.00017897,2]
[358049670,1744669875065,-74476.09,0.00017897,2]
[358049671,1744669875074,-74476.09,0.00017897,2]
[358049672,1744669875085,-26141.96301643,0.00017897,2]
[358049673,1744669877064,-500.0,0.00017894,2]
[358049674,1744669877074,-500.0,0.00017894,2]
[358049675,1744669877083,-500.0,0.00017896,2]
[358049676,1744669877092,-1732.80000003,0.00017896,2]
[358049677,1744669877103,-935.71801058,0.00017896,2]
[358049678,1744669877126,-917.737217,0.00017896,2]
[358049679,1744669878717,182.07954289,0.00017399,2]
[358049680,1744669915756,-400.7833,0.00017784,2]
[358049681,1744669922239,-250.0,0.00017784,2]
[358049682,1744669924355,-491.2601,0.00017784,2]
[358049683,1744669942731,-3353.9459,0.00017784,2]
[358049684,1744669980307,-2841.041937,0.0001779,2]
[358049685,1744670133461,-155.74886663,0.00017787,2]
[358049686,1744670138558,-155.7488666,0.00017788,2]
[358049687,1744670206591,-207.24544552,0.00017784,2]
[358049688,1744670217381,-400.0,0.00017784,2]
[358049689,1744670218247,-2422.58692125,0.00017784,2]
[358049690,1744670223617,2728.24,0.00016888,2]
[358049691,1744670224814,-188.89587865,0.00017784,2]
[358049692,1744670238733,685.12,0.00014964,2]
[358049693,1744670239117,685.12,0.00017227,2]
[358049694,1744670240415,246.49,0.00017074,2]
[358049695,1744670255464,-200.0,0.00017784,2]
[358049696,1744670256210,-250.0,0.00017784,2]
[358049697,1744670273792,200.57,0.000135,2]
[358049698,1744670276886,250.0,0.00016875,2]
[358049699,1744670282640,-250.0,0.00017784,2]
[358049700,1744670284253,-278.64460577,0.00017784,2]
[358049701,1744670528015,-172.0,0.00017684,2]
[358049702,1744670587945,12366.733308,7.945e-05,2]
[358049703,1744670588025,-587.926932,0.00017595,2]
[358049704,1744670601464,-16.77284603,0.00017684,2]
[358049705,1744670601491,-300.0,0.00017783,2]
[358049706,1744670601518,-2380.37444881,0.00017784,2]
[358049707,1744670601545,-967.5405,0.00017784,2]
[358049708,1744670601571,-1676.1984,0.00017784,2]
[358049709,1744670601599,-250.0,0.00017787,2]
[358049710,1744670601624,-223.887863,0.0001779,2]
[358049711,1744670601651,-384.73367993,0.00017798,2]
[358049712,1744670601677,-615.60848082,0.00017798,2]
[358049713,1744670601702,-5800.0,0.000178,2]
[358049714,1744670601729,-5017.7324335,0.00017826,2]
[358049715,1744670601758,-615.60848082,0.00017849,2]
[358049716,1744670601784,-200.0,0.00017856,2]
[358049717,1744670601811,-481.35223075,0.00017873,2]
[358049718,1744670601836,-498.75800124,0.00017873,2]
[358049719,1744670601862,-500.0,0.00017873,2]
[358049720,1744670601888,-500.0,0.00017873,2]
[358049721,1744670601914,-500.0,0.00017873,2]
[358049722,1744670602147,-550.0,0.00017873,2]
[358049723,1744670602181,-8521.4326351,0.00017874,2]
[358049724,1744670813181,252.3,0.00016881,2]
[358049725,1744670816364,190.3,0.00017016,2]
[358049726,1744670936890,271.83,0.00016879,2]
[358049727,1744670967756,1000.0,0.00016872,2]
[358049728,1744671032510,-300.0,0.00017782,2]
[358049729,1744671032520,-300.0,0.00017782,2]
[358049730,1744671032530,-1903.64651713,0.00017782,2]
[358049731,1744671032540,-300.0,0.00017782,2]
[358049732,1744671032549,-500.0,0.00017782,2]
[358049733,1744671032559,-208.05835475,0.00017782,2]
[358049734,1744671032569,-213.3995044,0.00017783,2]
[358049735,1744671032578,-9877.578,0.00017783,2]
[358049736,1744671032587,-940.06988584,0.00017783,2]
[358049737,1744671032598,-27701.25000867,0.00017783,2]
[358049766,1744671033029,-853.09168558,0.00017783,2]
[358049768,1744671038363,-354.60144798,0.00017783,2]
[358049769,1744671038395,-575.44595638,0.00017783,2]
[358049770,1744671038406,-10931.14519315,0.00017783,2]
[358049773,1744671038427,-615.1429224,0.00017783,2]
[358049775,1744671038437,-975.2770776,0.00017783,2]
[358049776,1744671038448,-1631.0,0.00017783,2]
[358049777,1744671038547,-2565.39,0.00017783,2]
[358049778,1744671038580,-2313.95,0.00017783,2]
[358049779,1744671038633,-149.57241534,0.00017783,2]
[358049780,1744671038662,-29554.34810706,0.00017783,2]
[358049781,1744671038672,-213.39950431,0.00017785,2]
[358049782,1744671038681,-201.23719771,0.00017786,2]
[358049783,1744671038691,-153.05243221,0.00017786,2]
[358049784,1744671038700,-213.39950431,0.00017786,2]
[358049785,1744671038709,-213.39950431,0.00017788,2]
[358049786,1744671038718,-213.39950431,0.0001779,2]
[358049787,1744671038731,-213.39950431,0.00017791,2]
[358049788,1744671038740,-213.39950431,0.00017793,2]
[358049789,1744671038749,-213.39950431,0.00017795,2]
[358049790,1744671038759,-155.7488666,0.00017796,2]
[358049792,1744671038769,-213.39950431,0.00017796,2]
[358049794,1744671038778,-155.7488666,0.00017798,2]
[358049796,1744671038787,-213.39950431,0.00017798,2]
[358049797,1744671038797,-153.05243219,0.00017815,2]
[358049798,1744671038807,-3763.2993251,0.00017826,2]
[358049799,1744671038817,-153.05243219,0.00017843,2]
[358049800,1744671038827,-200.0,0.00017856,2]
[358049801,1744671038835,-153.05243219,0.00017872,2]
[358049802,1744671038844,-3141.88435719,0.00017872,2]
[358049803,1744671038853,-168.60121112,0.00017873,2]
[358049804,1744671038863,-608.95979027,0.00017873,2]
[358049805,1744671038872,-152.93483458,0.00017873,2]
[358049806,1744671038881,-207.84012458,0.00017873,2]
[358049807,1744671038891,-500.0,0.00017873,2]
[358049808,1744671038900,-500.0,0.00017873,2]
[358049809,1744671038909,-500.0,0.00017873,2]
[358049810,1744671038918,-500.0,0.00017873,2]
[358049811,1744671038928,-586.45897888,0.00017873,2]
[358049812,1744671038938,-259.48888106,0.00017873,2]
[358049813,1744671038947,-153.17717981,0.00017873,2]
[358049814,1744671038957,-263.53015061,0.00017873,2]
[358049815,1744671038966,-239.5104396,0.00017873,2]
[358049816,1744671038975,-310.72202196,0.00017873,2]
[358049817,1744671038985,-152.98291366,0.00017873,2]
[358049821,1744671039207,-500.0,0.00017873,2]
[358049822,1744671039217,-280.03717627,0.00017873,2]
[358049823,1744671039227,-1000.0,0.00017873,2]
[358049824,1744671039236,-186.02695843,0.00017882,2]
[358049825,1744671039246,-180.7166134,0.00017882,2]
[358049826,1744671039255,-177.15851626,0.00017882,2]
[358049827,1744671039265,-403.63394611,0.00017882,2]
[358049828,1744671039274,-530.41871699,0.00017882,2]
[358049829,1744671039283,-500.0,0.00017882,2]
[358049830,1744671039292,-500.0,0.00017882,2]
[358049831,1744671039302,-500.0,0.00017882,2]
[358049832,1744671039311,-500.0,0.00017882,2]
[358049833,1744671039320,-561.24367981,0.00017882,2]
[358049834,1744671039330,-531.07391024,0.00017882,2]
[358049835,1744671039340,-500.0,0.00017882,2]
[358049836,1744671039350,-500.0,0.00017882,2]
[358049837,1744671039359,-500.0,0.00017882,2]
[358049838,1744671039368,-500.0,0.00017882,2]
[358049839,1744671039378,-500.0,0.00017882,2]
[358049840,1744671039387,-507.84848916,0.00017882,2]
[358049841,1744671039397,-500.0,0.00017882,2]
[358049842,1744671039406,-500.0,0.00017882,2]
[358049843,1744671039415,-500.0,0.00017882,2]
[358049844,1744671039425,-500.0,0.00017882,2]
[358049845,1744671039435,-500.0,0.00017882,2]
[358049846,1744671039444,-344.10063723,0.00017882,2]